[Event "*** SCC Grand Prix: Titled Tuesday Blitz"]
[Site "Chess.com"]
[Date "2020.10.13"]
[Round "4"]
[White "Jabberwockiez"]
[Black "nelsoncopa"]
[Result "1-0"]
[WhiteElo "2224"]
[BlackElo "1815"]
[TimeControl "180+1"]
[EndTime "10:37:59 PDT"]
[Termination "Jabberwockiez won by resignation"]

1. e4 {[%clk 0:03:00.9]} 1... d6 {[%clk 0:02:58.8]} 2. d4 {[%clk 0:03:00.6]}
2... Nf6 {[%clk 0:02:58.1]} 3. Nc3 {[%clk 0:03:00.2]} 3... Nbd7 {[%clk
0:02:58.3]} 4. Be3 {[%clk 0:02:59.7]} 4... e5 {[%clk 0:02:56.7]} 5. Nf3 {[%clk
0:02:57.7]} 5... Be7 {[%clk 0:02:53.9]} 6. Bc4 {[%clk 0:02:57.2]} 6... c6 {[%clk
0:02:52.4]} 7. O-O {[%clk 0:02:57.3]} 7... O-O {[%clk 0:02:51.6]} 8. h3 {[%clk
0:02:53]} 8... Qc7 {[%clk 0:02:50]} 9. a4 {[%clk 0:02:52.7]} 9... a5 {[%clk
0:02:49.3]} 10. Bd3 {[%clk 0:02:50.3]} 10... exd4 {[%clk 0:02:48.5]} 11. Bxd4
{[%clk 0:02:49.7]} 11... Ne5 {[%clk 0:02:49.4]} 12. Re1 {[%clk 0:02:35.2]} 12...
h6 {[%clk 0:02:40.6]} 13. Nh2 {[%clk 0:02:31]} 13... b6 {[%clk 0:02:34.1]} 14.
Bf1 {[%clk 0:02:27.2]} 14... Ba6 {[%clk 0:02:04.8]} 15. f4 {[%clk 0:02:25.9]}
15... Ned7 {[%clk 0:02:02.3]} 16. e5 {[%clk 0:02:23.9]} 16... dxe5 {[%clk
0:01:48.8]} 17. fxe5 {[%clk 0:02:24.8]} 17... Nh7 {[%clk 0:01:46.7]} 18. Bxa6
{[%clk 0:02:23.1]} 18... Rxa6 {[%clk 0:01:46]} 19. Ng4 {[%clk 0:02:23.5]} 19...
Raa8 {[%clk 0:01:27.1]} 20. e6 {[%clk 0:02:16.7]} 20... fxe6 {[%clk 0:01:21.9]}
21. Nxh6+ {[%clk 0:02:14.3]} 21... Kh8 {[%clk 0:01:09.5]} 22. Qg4 {[%clk
0:02:10.6]} 22... Ndf6 {[%clk 0:01:08.2]} 23. Qxe6 {[%clk 0:02:05.2]} 23... Bc5
{[%clk 0:01:00.2]} 24. Bxc5 {[%clk 0:01:50.1]} 24... bxc5 {[%clk 0:00:59]} 25.
Nf5 {[%clk 0:01:43.5]} 25... Rae8 {[%clk 0:00:55.1]} 26. Ne7 {[%clk 0:01:43.6]}
26... Rxe7 {[%clk 0:00:27.9]} 27. Qxe7 {[%clk 0:01:44.5]} 27... Qxe7 {[%clk
0:00:28.2]} 28. Rxe7 {[%clk 0:01:43.9]} 28... Rb8 {[%clk 0:00:27.6]} 29. b3
{[%clk 0:01:43.2]} 29... Kg8 {[%clk 0:00:24.1]} 30. Rae1 {[%clk 0:01:42.1]}
30... Rc8 {[%clk 0:00:23.2]} 31. Ra7 {[%clk 0:01:41.6]} 31... Nf8 {[%clk
0:00:17.8]} 32. Ree7 {[%clk 0:01:41.3]} 32... Ng6 {[%clk 0:00:12.3]} 33. Rxg7+
{[%clk 0:01:40.8]} 33... Kf8 {[%clk 0:00:11.4]} 34. Rxg6 {[%clk 0:01:41.7]} 1-0

[Event "*** SCC Grand Prix: Titled Tuesday Blitz"]
[Site "Chess.com"]
[Date "2020.10.13"]
[Round "4"]
[White "tk22h"]
[Black "Gerodot71"]
[Result "1/2-1/2"]
[WhiteElo "2320"]
[BlackElo "2456"]
[TimeControl "180+1"]
[EndTime "10:38:04 PDT"]
[Termination "Game drawn by repetition"]

1. d4 {[%clk 0:02:58.4]} 1... Nf6 {[%clk 0:02:59.7]} 2. c4 {[%clk 0:02:55.4]}
2... e6 {[%clk 0:03:00]} 3. Nc3 {[%clk 0:02:54.9]} 3... Bb4 {[%clk 0:02:59.6]}
4. e3 {[%clk 0:02:55]} 4... d5 {[%clk 0:02:56.2]} 5. a3 {[%clk 0:02:52.2]} 5...
Bd6 {[%clk 0:02:48.9]} 6. Bd3 {[%clk 0:02:50.7]} 6... O-O {[%clk 0:02:45.9]} 7.
Nf3 {[%clk 0:02:49.7]} 7... a6 {[%clk 0:02:30.2]} 8. O-O {[%clk 0:02:37.1]} 8...
dxc4 {[%clk 0:02:25.5]} 9. Bxc4 {[%clk 0:02:37.1]} 9... b5 {[%clk 0:02:26.4]}
10. Bd3 {[%clk 0:02:36.7]} 10... Bb7 {[%clk 0:02:27]} 11. e4 {[%clk 0:02:35.5]}
11... Be7 {[%clk 0:02:27.3]} 12. Qe2 {[%clk 0:02:33.4]} 12... c5 {[%clk
0:02:22.1]} 13. dxc5 {[%clk 0:02:33.3]} 13... Bxc5 {[%clk 0:02:17.2]} 14. Bg5
{[%clk 0:02:31.4]} 14... h6 {[%clk 0:02:11.2]} 15. Bh4 {[%clk 0:02:30.6]} 15...
Be7 {[%clk 0:02:04.7]} 16. Rfd1 {[%clk 0:02:29.9]} 16... Qe8 {[%clk 0:01:57.5]}
17. Rac1 {[%clk 0:02:27.2]} 17... Nbd7 {[%clk 0:01:49.9]} 18. Bg3 {[%clk
0:02:16.6]} 18... Nh5 {[%clk 0:01:45.9]} 19. e5 {[%clk 0:02:11.5]} 19... Nxg3
{[%clk 0:01:43.5]} 20. hxg3 {[%clk 0:02:11]} 20... Nc5 {[%clk 0:01:31.4]} 21.
Bb1 {[%clk 0:02:07]} 21... Rc8 {[%clk 0:01:27.1]} 22. Ne4 {[%clk 0:02:06.5]}
22... Nxe4 {[%clk 0:01:01]} 23. Bxe4 {[%clk 0:02:07.4]} 23... Rxc1 {[%clk
0:00:59.3]} 24. Rxc1 {[%clk 0:02:06.8]} 24... Qa8 {[%clk 0:00:59.9]} 25. Bxb7
{[%clk 0:02:04.4]} 25... Qxb7 {[%clk 0:01:00.8]} 26. Qc2 {[%clk 0:02:00]} 26...
Rd8 {[%clk 0:00:52.2]} 27. Qc7 {[%clk 0:01:56.4]} 27... Rd1+ {[%clk 0:00:51.3]}
28. Kh2 {[%clk 0:01:56.3]} 28... Qxc7 {[%clk 0:00:50.1]} 29. Rxc7 {[%clk
0:01:55.1]} 29... Bf8 {[%clk 0:00:50.3]} 30. g4 {[%clk 0:01:50.2]} 30... g6
{[%clk 0:00:47]} 31. Ra7 {[%clk 0:01:44.8]} 31... Rb1 {[%clk 0:00:46.2]} 32. b4
{[%clk 0:01:42.9]} 32... Ra1 {[%clk 0:00:40.4]} 33. Nd2 {[%clk 0:01:33]} 33...
Rxa3 {[%clk 0:00:36]} 34. Ne4 {[%clk 0:01:32.9]} 34... Bxb4 {[%clk 0:00:29.3]}
35. Nf6+ {[%clk 0:01:30.8]} 35... Kg7 {[%clk 0:00:29.1]} 36. Ra8 {[%clk
0:01:24.3]} 36... Bf8 {[%clk 0:00:27.2]} 37. Ne8+ {[%clk 0:01:23.4]} 37... Kg8
{[%clk 0:00:26.5]} 38. Nf6+ {[%clk 0:01:23.4]} 38... Kg7 {[%clk 0:00:26.9]} 39.
Ne8+ {[%clk 0:01:23.4]} 39... Kg8 {[%clk 0:00:27.4]} 40. Nf6+ {[%clk 0:01:23.5]}
40... Kg7 {[%clk 0:00:25.9]} 1/2-1/2

[Event "*** SCC Grand Prix: Titled Tuesday Blitz"]
[Site "Chess.com"]
[Date "2020.10.13"]
[Round "4"]
[White "chessfrendz"]
[Black "Ramu_K_FM_FT"]
[Result "1-0"]
[WhiteElo "2382"]
[BlackElo "2098"]
[TimeControl "180+1"]
[EndTime "10:38:06 PDT"]
[Termination "chessfrendz won on time"]

1. d4 {[%clk 0:03:00.9]} 1... Nf6 {[%clk 0:02:58.9]} 2. Nf3 {[%clk 0:02:59.8]}
2... g6 {[%clk 0:02:57.1]} 3. Nc3 {[%clk 0:02:59.2]} 3... Bg7 {[%clk 0:02:57.5]}
4. e4 {[%clk 0:02:58.7]} 4... d6 {[%clk 0:02:57.8]} 5. g3 {[%clk 0:02:53.5]}
5... Nbd7 {[%clk 0:02:55.7]} 6. Bg2 {[%clk 0:02:53.3]} 6... O-O {[%clk
0:02:54.2]} 7. O-O {[%clk 0:02:52.4]} 7... e5 {[%clk 0:02:53.7]} 8. d5 {[%clk
0:02:51.6]} 8... h6 {[%clk 0:02:50.3]} 9. a4 {[%clk 0:02:46.2]} 9... Nh7 {[%clk
0:02:49.2]} 10. g4 {[%clk 0:02:38.9]} 10... f5 {[%clk 0:02:38.1]} 11. gxf5
{[%clk 0:02:34.8]} 11... gxf5 {[%clk 0:02:36.3]} 12. exf5 {[%clk 0:02:34.7]}
12... Rxf5 {[%clk 0:02:31.9]} 13. Be3 {[%clk 0:02:26.5]} 13... Ndf8 {[%clk
0:02:06.6]} 14. Nd2 {[%clk 0:02:17.9]} 14... Ng5 {[%clk 0:01:51.7]} 15. Nde4
{[%clk 0:02:16.1]} 15... Qe8 {[%clk 0:01:36.9]} 16. Nxg5 {[%clk 0:02:14.4]}
16... hxg5 {[%clk 0:01:36.2]} 17. Ne4 {[%clk 0:02:06.6]} 17... Bh6 {[%clk
0:01:08.2]} 18. h4 {[%clk 0:01:46.1]} 18... Nh7 {[%clk 0:00:48.4]} 19. Bh3
{[%clk 0:01:27.7]} 19... Rf4 {[%clk 0:00:14.5]} 20. Bxc8 {[%clk 0:01:26.2]}
20... Qxc8 {[%clk 0:00:13.3]} 21. Bxf4 {[%clk 0:01:25.4]} 21... gxf4 {[%clk
0:00:12.9]} 22. Qh5 {[%clk 0:01:23.8]} 22... Qh3 {[%clk 0:00:11.8]} 23. Ra3
{[%clk 0:01:17.7]} 23... f3 {[%clk 0:00:05.7]} 24. Rxf3 {[%clk 0:01:15.8]} 1-0

[Event "*** SCC Grand Prix: Titled Tuesday Blitz"]
[Site "Chess.com"]
[Date "2020.10.13"]
[Round "4"]
[White "Maksimus1998"]
[Black "ASVZ"]
[Result "0-1"]
[WhiteElo "2608"]
[BlackElo "2454"]
[TimeControl "180+1"]
[EndTime "10:38:07 PDT"]
[Termination "ASVZ won by resignation"]

1. e4 {[%clk 0:03:00.9]} 1... e6 {[%clk 0:03:00.4]} 2. d4 {[%clk 0:02:54.4]}
2... d5 {[%clk 0:03:00.5]} 3. Nd2 {[%clk 0:02:54.9]} 3... Nc6 {[%clk 0:02:59.6]}
4. e5 {[%clk 0:02:53.8]} 4... Nxd4 {[%clk 0:02:58.6]} 5. Bd3 {[%clk 0:02:36.8]}
5... c5 {[%clk 0:02:56.2]} 6. c3 {[%clk 0:02:35]} 6... Nc6 {[%clk 0:02:56.1]} 7.
Ngf3 {[%clk 0:02:33.5]} 7... g5 {[%clk 0:02:49.1]} 8. Bb5 {[%clk 0:02:27.5]}
8... g4 {[%clk 0:02:47.1]} 9. Ng1 {[%clk 0:02:22.5]} 9... Qg5 {[%clk 0:02:26.5]}
10. f4 {[%clk 0:01:43.2]} 10... gxf3 {[%clk 0:02:17.3]} 11. Ngxf3 {[%clk
0:01:39.8]} 11... Qe3+ {[%clk 0:02:14]} 12. Kf1 {[%clk 0:01:37]} 12... Nh6
{[%clk 0:01:41.6]} 13. Nb3 {[%clk 0:01:31.7]} 13... Ng4 {[%clk 0:01:34.6]} 14.
Bxe3 {[%clk 0:01:28.9]} 14... Nxe3+ {[%clk 0:01:34.5]} 15. Ke2 {[%clk
0:01:29.2]} 15... Nxd1 {[%clk 0:01:34.9]} 16. Raxd1 {[%clk 0:01:29.3]} 16... Bd7
{[%clk 0:01:31]} 17. Rhf1 {[%clk 0:01:28.3]} 17... Nxe5 {[%clk 0:01:26.5]} 18.
Bxd7+ {[%clk 0:01:25.8]} 18... Nxd7 {[%clk 0:01:26.5]} 19. Ng5 {[%clk
0:01:25.9]} 19... Ne5 {[%clk 0:01:20.5]} 20. c4 {[%clk 0:01:18.1]} 20... d4
{[%clk 0:01:15.2]} 21. Nd2 {[%clk 0:01:15.2]} 21... Rg8 {[%clk 0:01:07.6]} 22.
Nxh7 {[%clk 0:01:12.4]} 22... Rxg2+ {[%clk 0:01:06.2]} 23. Rf2 {[%clk
0:01:12.3]} 23... Rxf2+ {[%clk 0:01:01]} 24. Kxf2 {[%clk 0:01:13.2]} 24... O-O-O
{[%clk 0:00:56.1]} 25. Ne4 {[%clk 0:01:10.4]} 25... Be7 {[%clk 0:00:53.1]} 26.
Nhf6 {[%clk 0:01:04.7]} 26... Nxc4 {[%clk 0:00:34]} 27. Rc1 {[%clk 0:01:01.8]}
27... Nxb2 {[%clk 0:00:34.3]} 28. Ke2 {[%clk 0:00:55.5]} 28... c4 {[%clk
0:00:31.8]} 29. Ng4 {[%clk 0:00:51.2]} 29... f5 {[%clk 0:00:27.5]} 0-1

[Event "*** SCC Grand Prix: Titled Tuesday Blitz"]
[Site "Chess.com"]
[Date "2020.10.13"]
[Round "4"]
[White "Lagmantr"]
[Black "AldokhinIvan"]
[Result "1-0"]
[WhiteElo "2724"]
[BlackElo "2549"]
[TimeControl "180+1"]
[EndTime "10:38:14 PDT"]
[Termination "Lagmantr won by resignation"]

1. e4 {[%clk 0:03:00.4]} 1... c5 {[%clk 0:02:59.9]} 2. Nf3 {[%clk 0:03:00.2]}
2... e6 {[%clk 0:03:00.5]} 3. d4 {[%clk 0:03:00.3]} 3... cxd4 {[%clk 0:03:01.4]}
4. Nxd4 {[%clk 0:03:00.9]} 4... a6 {[%clk 0:03:02]} 5. c4 {[%clk 0:03:01.2]}
5... Qc7 {[%clk 0:03:02.2]} 6. Be2 {[%clk 0:03:01.1]} 6... Nf6 {[%clk
0:03:02.8]} 7. Nc3 {[%clk 0:03:00.7]} 7... d6 {[%clk 0:02:59.3]} 8. O-O {[%clk
0:03:00.5]} 8... Ke7 {[%clk 0:02:56.5]} 9. Bg5 {[%clk 0:02:52.7]} 9... Nc6
{[%clk 0:02:49.1]} 10. Rc1 {[%clk 0:02:44.4]} 10... Qb6 {[%clk 0:02:14.6]} 11.
Nb3 {[%clk 0:02:30.3]} 11... g6 {[%clk 0:01:37.5]} 12. c5 {[%clk 0:02:13.8]}
12... dxc5 {[%clk 0:01:20.7]} 13. Na4 {[%clk 0:02:13.3]} 13... Qd8 {[%clk
0:01:10.8]} 14. Qxd8+ {[%clk 0:02:09.4]} 14... Nxd8 {[%clk 0:01:10.2]} 15. e5
{[%clk 0:02:09.9]} 15... Bg7 {[%clk 0:01:07.8]} 16. Nb6 {[%clk 0:02:08.5]} 16...
Rb8 {[%clk 0:01:04.8]} 17. Rxc5 {[%clk 0:02:07.5]} 17... Nc6 {[%clk 0:01:01.8]}
18. Rd1 {[%clk 0:02:07.1]} 18... Nxe5 {[%clk 0:00:48.1]} 19. Rxe5 {[%clk
0:02:01.7]} 19... h6 {[%clk 0:00:48.4]} 20. Be3 {[%clk 0:01:59.2]} 20... Nd7
{[%clk 0:00:34.7]} 21. Nxd7 {[%clk 0:01:31.7]} 21... Bxd7 {[%clk 0:00:34.2]} 22.
Rc5 {[%clk 0:01:32.1]} 22... Rbc8 {[%clk 0:00:21.4]} 23. Rxc8 {[%clk 0:01:24.4]}
23... Rxc8 {[%clk 0:00:20.4]} 24. Bd4 {[%clk 0:01:24.7]} 24... e5 {[%clk
0:00:20.1]} 25. Bc3 {[%clk 0:01:22.5]} 25... Be6 {[%clk 0:00:17.6]} 26. f4
{[%clk 0:01:16]} 26... Bxb3 {[%clk 0:00:11.9]} 27. axb3 {[%clk 0:01:14.7]} 27...
b5 {[%clk 0:00:04.1]} 28. fxe5 {[%clk 0:01:12]} 28... b4 {[%clk 0:00:04.6]} 29.
Bxb4+ {[%clk 0:01:12]} 29... Ke6 {[%clk 0:00:05.2]} 30. Bg4+ {[%clk 0:01:11.7]}
1-0

[Event "*** SCC Grand Prix: Titled Tuesday Blitz"]
[Site "Chess.com"]
[Date "2020.10.13"]
[Round "4"]
[White "anasta10"]
[Black "FMalexhdez"]
[Result "1-0"]
[WhiteElo "2418"]
[BlackElo "2252"]
[TimeControl "180+1"]
[EndTime "10:38:14 PDT"]
[Termination "anasta10 won by resignation"]

1. d4 {[%clk 0:03:00.9]} 1... Nf6 {[%clk 0:02:59.5]} 2. c4 {[%clk 0:03:01.8]}
2... e6 {[%clk 0:02:59.6]} 3. Nc3 {[%clk 0:03:02.7]} 3... Bb4 {[%clk 0:02:59.6]}
4. Qc2 {[%clk 0:02:58.4]} 4... c5 {[%clk 0:02:59.9]} 5. e3 {[%clk 0:02:56.1]}
5... d5 {[%clk 0:02:54.2]} 6. Nf3 {[%clk 0:02:53]} 6... Nc6 {[%clk 0:02:51.5]}
7. Be2 {[%clk 0:02:46.5]} 7... O-O {[%clk 0:02:51.1]} 8. O-O {[%clk 0:02:44.4]}
8... dxc4 {[%clk 0:02:50.9]} 9. Rd1 {[%clk 0:02:43.8]} 9... cxd4 {[%clk
0:02:49.7]} 10. exd4 {[%clk 0:02:44.7]} 10... Bxc3 {[%clk 0:02:44]} 11. bxc3
{[%clk 0:02:43.9]} 11... b5 {[%clk 0:02:43.9]} 12. a4 {[%clk 0:02:43.3]} 12...
b4 {[%clk 0:02:29.3]} 13. Bxc4 {[%clk 0:02:21.5]} 13... Bb7 {[%clk 0:02:26.4]}
14. cxb4 {[%clk 0:02:18.9]} 14... Nxb4 {[%clk 0:02:24.5]} 15. Qb3 {[%clk
0:02:19.1]} 15... a5 {[%clk 0:02:23.1]} 16. Ne5 {[%clk 0:02:12.3]} 16... Bd5
{[%clk 0:02:04.3]} 17. Bg5 {[%clk 0:02:04.3]} 17... h6 {[%clk 0:02:01.8]} 18.
Bxf6 {[%clk 0:02:02]} 18... Qxf6 {[%clk 0:02:00.4]} 19. Bxd5 {[%clk 0:02:02.2]}
19... Nxd5 {[%clk 0:01:57.4]} 20. Nd7 {[%clk 0:02:02.6]} 20... Qg5 {[%clk
0:01:37.2]} 21. Nxf8 {[%clk 0:02:00.6]} 21... Rxf8 {[%clk 0:01:37.1]} 22. Qg3
{[%clk 0:02:00]} 22... Qf5 {[%clk 0:01:33.7]} 23. h3 {[%clk 0:01:34.4]} 23...
Nb4 {[%clk 0:01:08]} 24. Rac1 {[%clk 0:01:16]} 24... Rd8 {[%clk 0:00:58.5]} 25.
Qe5 {[%clk 0:00:58.3]} 25... Qg6 {[%clk 0:00:38.5]} 26. Qxa5 {[%clk 0:00:51.3]}
26... Rb8 {[%clk 0:00:35.8]} 27. Rb1 {[%clk 0:00:47.5]} 27... Qe4 {[%clk
0:00:18.1]} 1-0

[Event "*** SCC Grand Prix: Titled Tuesday Blitz"]
[Site "Chess.com"]
[Date "2020.10.13"]
[Round "4"]
[White "ViktoriyaTarasova"]
[Black "grunbergmihai"]
[Result "0-1"]
[WhiteElo "2252"]
[BlackElo "2417"]
[TimeControl "180+1"]
[EndTime "10:38:15 PDT"]
[Termination "grunbergmihai won by checkmate"]

1. d4 {[%clk 0:03:00.9]} 1... f5 {[%clk 0:02:59.6]} 2. c4 {[%clk 0:03:00.4]}
2... Nf6 {[%clk 0:02:59.7]} 3. g3 {[%clk 0:03:00.7]} 3... g6 {[%clk 0:03:00.2]}
4. Bg2 {[%clk 0:03:01]} 4... Bg7 {[%clk 0:03:01.1]} 5. Nf3 {[%clk 0:03:01.6]}
5... O-O {[%clk 0:03:01.9]} 6. O-O {[%clk 0:03:02.1]} 6... c6 {[%clk 0:03:02.3]}
7. b3 {[%clk 0:02:58.9]} 7... Ne4 {[%clk 0:03:01.8]} 8. Bb2 {[%clk 0:02:58.7]}
8... a5 {[%clk 0:03:01.6]} 9. Nbd2 {[%clk 0:02:56.3]} 9... d5 {[%clk 0:03:01.5]}
10. Ne5 {[%clk 0:02:54.3]} 10... Be6 {[%clk 0:03:00.8]} 11. Qc2 {[%clk
0:02:53.2]} 11... Nd7 {[%clk 0:03:00.1]} 12. Ndf3 {[%clk 0:02:42.1]} 12... Nxe5
{[%clk 0:02:54]} 13. Nxe5 {[%clk 0:02:41.5]} 13... a4 {[%clk 0:02:52.8]} 14. f3
{[%clk 0:02:23.1]} 14... Nd6 {[%clk 0:02:49]} 15. cxd5 {[%clk 0:02:15.6]} 15...
cxd5 {[%clk 0:02:47.4]} 16. Rac1 {[%clk 0:02:09.2]} 16... axb3 {[%clk
0:02:46.4]} 17. axb3 {[%clk 0:02:08.3]} 17... Ra2 {[%clk 0:02:41.7]} 18. Ra1
{[%clk 0:02:04.8]} 18... Rxa1 {[%clk 0:02:40.2]} 19. Rxa1 {[%clk 0:02:01.1]}
19... Qb6 {[%clk 0:02:40.6]} 20. Kh1 {[%clk 0:01:43]} 20... Rc8 {[%clk
0:02:39.7]} 21. Qd3 {[%clk 0:01:42.8]} 21... Nf7 {[%clk 0:02:28.9]} 22. f4
{[%clk 0:01:28.6]} 22... Nxe5 {[%clk 0:02:26.3]} 23. fxe5 {[%clk 0:01:26.2]}
23... Qc6 {[%clk 0:02:17.4]} 24. Bf3 {[%clk 0:00:46.4]} 24... Qc2 {[%clk
0:02:13.8]} 25. Qxc2 {[%clk 0:00:45.5]} 25... Rxc2 {[%clk 0:02:13.2]} 26. Ba3
{[%clk 0:00:46]} 26... Rc3 {[%clk 0:02:00.4]} 27. Rb1 {[%clk 0:00:42.4]} 27...
Kf7 {[%clk 0:01:58.7]} 28. Bb4 {[%clk 0:00:41.8]} 28... Rc2 {[%clk 0:01:57.2]}
29. Kg1 {[%clk 0:00:29.7]} 29... g5 {[%clk 0:01:54.8]} 30. Kf1 {[%clk
0:00:26.1]} 30... g4 {[%clk 0:01:54.7]} 31. Bg2 {[%clk 0:00:26.4]} 31... h5
{[%clk 0:01:54.8]} 32. Bc5 {[%clk 0:00:23.8]} 32... Bh6 {[%clk 0:01:52.4]} 33.
Ra1 {[%clk 0:00:23.2]} 33... f4 {[%clk 0:01:49.8]} 34. gxf4 {[%clk 0:00:21.7]}
34... Bxf4 {[%clk 0:01:49.4]} 35. Ra7 {[%clk 0:00:19.8]} 35... Be3 {[%clk
0:01:40.2]} 36. Ra1 {[%clk 0:00:17]} 36... h4 {[%clk 0:01:39.1]} 37. Bh1 {[%clk
0:00:14.6]} 37... Rd2 {[%clk 0:01:30.1]} 38. Ra7 {[%clk 0:00:14.4]} 38... Rd1+
{[%clk 0:01:25]} 39. Kg2 {[%clk 0:00:14.3]} 39... Rg1# {[%clk 0:01:23.7]} 0-1

[Event "*** SCC Grand Prix: Titled Tuesday Blitz"]
[Site "Chess.com"]
[Date "2020.10.13"]
[Round "4"]
[White "GelmanAlexander"]
[Black "ajdemipopushi"]
[Result "1-0"]
[WhiteElo "2571"]
[BlackElo "2349"]
[TimeControl "180+1"]
[EndTime "10:38:19 PDT"]
[Termination "GelmanAlexander won on time"]

1. d4 {[%clk 0:03:00.9]} 1... Nf6 {[%clk 0:02:59.3]} 2. Nc3 {[%clk 0:03:01.2]}
2... d5 {[%clk 0:02:55.7]} 3. Bf4 {[%clk 0:03:01.2]} 3... c5 {[%clk 0:02:33]} 4.
e3 {[%clk 0:03:01.2]} 4... a6 {[%clk 0:02:30.1]} 5. Nf3 {[%clk 0:03:01.2]} 5...
Nc6 {[%clk 0:02:29.6]} 6. Ne5 {[%clk 0:03:01.5]} 6... e6 {[%clk 0:02:22.1]} 7.
g4 {[%clk 0:02:56.8]} 7... h6 {[%clk 0:02:18]} 8. Bg2 {[%clk 0:02:53.6]} 8...
Bd6 {[%clk 0:01:55.2]} 9. h4 {[%clk 0:01:57.7]} 9... Bxe5 {[%clk 0:01:47.4]} 10.
dxe5 {[%clk 0:01:18.2]} 10... Nd7 {[%clk 0:01:47]} 11. g5 {[%clk 0:01:18.2]}
11... hxg5 {[%clk 0:01:19.4]} 12. hxg5 {[%clk 0:01:10.2]} 12... Rxh1+ {[%clk
0:01:14.8]} 13. Bxh1 {[%clk 0:01:11.1]} 13... Ndxe5 {[%clk 0:01:07.7]} 14. Qh5
{[%clk 0:01:10.9]} 14... Ng6 {[%clk 0:00:36.8]} 15. Bg3 {[%clk 0:00:57.3]} 15...
Ke7 {[%clk 0:00:26.9]} 16. O-O-O {[%clk 0:00:55.4]} 16... Qa5 {[%clk 0:00:19.7]}
17. Bxd5 {[%clk 0:00:43.5]} 17... Nb4 {[%clk 0:00:07.4]} 18. Bb3 {[%clk
0:00:37.7]} 1-0

[Event "*** SCC Grand Prix: Titled Tuesday Blitz"]
[Site "Chess.com"]
[Date "2020.10.13"]
[Round "4"]
[White "Mikhail_Golubev"]
[Black "icychess54"]
[Result "1-0"]
[WhiteElo "2538"]
[BlackElo "2286"]
[TimeControl "180+1"]
[EndTime "10:38:24 PDT"]
[Termination "Mikhail_Golubev won by checkmate"]

1. e4 {[%clk 0:03:00.9]} 1... c5 {[%clk 0:02:59.5]} 2. Nf3 {[%clk 0:03:00]} 2...
d6 {[%clk 0:03:00]} 3. d4 {[%clk 0:03:00]} 3... cxd4 {[%clk 0:03:00.9]} 4. Nxd4
{[%clk 0:03:00.5]} 4... Nf6 {[%clk 0:03:00]} 5. Nc3 {[%clk 0:03:01]} 5... Nc6
{[%clk 0:03:00.2]} 6. Bc4 {[%clk 0:03:00.7]} 6... e6 {[%clk 0:03:00.3]} 7. Be3
{[%clk 0:02:59.4]} 7... Be7 {[%clk 0:03:00.5]} 8. Qe2 {[%clk 0:02:58.6]} 8... a6
{[%clk 0:03:00.7]} 9. O-O-O {[%clk 0:02:56.5]} 9... Qc7 {[%clk 0:03:00.9]} 10.
Bb3 {[%clk 0:02:55.7]} 10... O-O {[%clk 0:03:00]} 11. Rhg1 {[%clk 0:02:54.9]}
11... b5 {[%clk 0:02:59.7]} 12. g4 {[%clk 0:02:51.1]} 12... Bb7 {[%clk
0:02:56.7]} 13. g5 {[%clk 0:02:43.3]} 13... Nd7 {[%clk 0:02:56.5]} 14. Nxe6
{[%clk 0:02:30.6]} 14... fxe6 {[%clk 0:02:55.8]} 15. Bxe6+ {[%clk 0:02:30.3]}
15... Kh8 {[%clk 0:02:55.3]} 16. Nd5 {[%clk 0:02:25.9]} 16... Qd8 {[%clk
0:02:39.2]} 17. g6 {[%clk 0:02:24.1]} 17... Rf6 {[%clk 0:01:41]} 18. Bxd7 {[%clk
0:02:16.4]} 18... Qxd7 {[%clk 0:01:19.5]} 19. Qh5 {[%clk 0:01:59.9]} 19... Rxg6
{[%clk 0:00:56.7]} 20. Rxg6 {[%clk 0:02:00.6]} 20... Ne5 {[%clk 0:00:48.4]} 21.
Nxe7 {[%clk 0:01:28.6]} 21... Qxe7 {[%clk 0:00:42.5]} 22. Rgxd6 {[%clk
0:01:28.2]} 22... Nc4 {[%clk 0:00:36.9]} 23. Rd7 {[%clk 0:01:21.5]} 23... Qf6
{[%clk 0:00:31.8]} 24. Bd4 {[%clk 0:01:16.7]} 24... Qf4+ {[%clk 0:00:04.6]} 25.
Kb1 {[%clk 0:01:15.3]} 25... Rg8 {[%clk 0:00:05]} 26. Rxb7 {[%clk 0:01:03.9]}
26... Nd2+ {[%clk 0:00:05.2]} 27. Rxd2 {[%clk 0:01:00]} 27... Qxd2 {[%clk
0:00:05.1]} 28. Bxg7+ {[%clk 0:00:59.4]} 28... Rxg7 {[%clk 0:00:04.8]} 29. Qe8+
{[%clk 0:00:59.1]} 29... Rg8 {[%clk 0:00:03.8]} 30. Qe5+ {[%clk 0:00:58.9]}
30... Rg7 {[%clk 0:00:04.4]} 31. Qxg7# {[%clk 0:00:58.5]} 1-0